[Event "Titled Tuesday Blitz February 07 Early 2023"]
[White "Mirzanurov, Bulat"]
[Black "Khokhlova, Daria"]
[WhiteFideId "4184521"]
[BlackFideId "24182729"]
[WhiteElo "2232"]
[BlackElo "2111"]
[Result "0-1"]
[Round "07"]
[TimeControl "180+2"]
[Date "2023.02.07"]
[WhiteClock "0:00:35"]
[BlackClock "0:00:15"]

1. e4 {[%clk 0:03:00]}  c5 {[%clk 0:02:58]} 2. Nf3 {[%clk 0:03:00]}  d6 {[%clk 0:02:58]} 3. d4 {[%clk 0:03:00]}  cxd4 {[%clk 0:02:59]} 4. Nxd4 {[%clk 0:03:00]}  Nf6 {[%clk 0:02:59]} 5. f3 {[%clk 0:03:00]}  e5 {[%clk 0:02:54]} 6. Nb3 {[%clk 0:02:59]}  d5 {[%clk 0:02:47]} 7. Bg5 {[%clk 0:02:57]}  d4 {[%clk 0:02:45]} 8. c3 {[%clk 0:02:53]}  Nc6 {[%clk 0:02:39]} 9. a3 {[%clk 0:02:47]}  Be7 {[%clk 0:02:34]} 10. cxd4 {[%clk 0:02:45]}  exd4 {[%clk 0:02:31]} 11. Bd3 {[%clk 0:02:44]}  Be6 {[%clk 0:02:22]} 12. O-O {[%clk 0:02:27]}  O-O {[%clk 0:02:22]} 13. f4 {[%clk 0:02:22]}  h6 {[%clk 0:01:43]} 14. Bh4 {[%clk 0:02:19]}  Nxe4 {[%clk 0:01:36]} 15. Bxe7 {[%clk 0:02:17]}  Qxe7 {[%clk 0:01:36]} 16. Re1 {[%clk 0:01:37]}  Bxb3 {[%clk 0:01:02]} 17. Qxb3 {[%clk 0:01:25]}  Nc5 {[%clk 0:01:01]} 18. Qd1 {[%clk 0:01:25]}  Qd6 {[%clk 0:00:57]} 19. Rf1 {[%clk 0:01:16]}  Rfe8 {[%clk 0:00:47]} 20. b4 {[%clk 0:01:12]}  Nxd3 {[%clk 0:00:43]} 21. Qxd3 {[%clk 0:01:13]}  Re3 {[%clk 0:00:44]} 22. Qd1 {[%clk 0:01:12]}  d3 {[%clk 0:00:41]} 23. Nd2 {[%clk 0:01:11]}  Qd4 {[%clk 0:00:33]} 24. Kh1 {[%clk 0:01:11]}  Rae8 {[%clk 0:00:31]} 25. Nf3 {[%clk 0:01:08]}  Qd5 {[%clk 0:00:30]} 26. h3 {[%clk 0:00:59]}  Nd4 {[%clk 0:00:25]} 27. Ne5 {[%clk 0:00:50]}  Rxh3+ {[%clk 0:00:19]} 28. Kg1 {[%clk 0:00:48]}  Ne2+ {[%clk 0:00:19]} 29. Kf2 {[%clk 0:00:39]}  Qd4+ {[%clk 0:00:19]} 30. Ke1 {[%clk 0:00:39]}  Re3 {[%clk 0:00:17]} 31. Rf3 {[%clk 0:00:35]}  Nc3+ {[%clk 0:00:15]} 0-1


[Site "https://www.chess.com"]

[Event "Titled Tuesday Blitz February 07 Early 2023"]
[White "sabkeIXO"]
[Black "Alhadad, Mahmoud"]
[BlackFideId "11501863"]
[WhiteElo "2467"]
[BlackElo "1840"]
[Result "1-0"]
[Round "07"]
[TimeControl "180+2"]
[Date "2023.02.07"]
[WhiteClock "0:00:54"]
[BlackClock "0:00:01"]

1. e4 {[%clk 0:03:00]}  d5 {[%clk 0:03:00]} 2. exd5 {[%clk 0:03:00]}  Nf6 {[%clk 0:03:00]} 3. Nf3 {[%clk 0:03:00]}  Bg4 {[%clk 0:03:01]} 4. Be2 {[%clk 0:03:00]}  Qxd5 {[%clk 0:03:01]} 5. d4 {[%clk 0:03:00]}  Nc6 {[%clk 0:03:01]} 6. c4 {[%clk 0:02:59]}  Qf5 {[%clk 0:03:01]} 7. Be3 {[%clk 0:02:57]}  e6 {[%clk 0:02:56]} 8. Nbd2 {[%clk 0:02:56]}  Ne4 {[%clk 0:02:45]} 9. Nxe4 {[%clk 0:02:53]}  Qxe4 {[%clk 0:02:42]} 10. O-O {[%clk 0:02:52]}  Be7 {[%clk 0:02:36]} 11. Bd3 {[%clk 0:02:38]}  Bxf3 {[%clk 0:02:35]} 12. Bxe4 {[%clk 0:02:38]}  Bxd1 {[%clk 0:02:35]} 13. Rfxd1 {[%clk 0:02:34]}  Nd8 {[%clk 0:02:01]} 14. d5 {[%clk 0:02:28]}  exd5 {[%clk 0:01:59]} 15. Bxd5 {[%clk 0:02:27]}  c6 {[%clk 0:01:57]} 16. Bf3 {[%clk 0:02:28]}  Ne6 {[%clk 0:01:51]} 17. g3 {[%clk 0:02:22]}  Rd8 {[%clk 0:01:44]} 18. a3 {[%clk 0:02:20]}  Rxd1+ {[%clk 0:01:36]} 19. Rxd1 {[%clk 0:02:21]}  a6 {[%clk 0:01:36]} 20. b4 {[%clk 0:02:20]}  Bg5 {[%clk 0:01:22]} 21. Bb6 {[%clk 0:02:13]}  Bd8 {[%clk 0:01:16]} 22. Ba7 {[%clk 0:02:00]}  Bc7 {[%clk 0:01:10]} 23. a4 {[%clk 0:01:58]}  Ke7 {[%clk 0:01:08]} 24. b5 {[%clk 0:01:56]}  axb5 {[%clk 0:01:07]} 25. axb5 {[%clk 0:01:55]}  cxb5 {[%clk 0:01:00]} 26. cxb5 {[%clk 0:01:36]}  b6 {[%clk 0:00:57]} 27. Rc1 {[%clk 0:01:36]}  Nc5 {[%clk 0:00:26]} 28. Rxc5 {[%clk 0:01:10]}  bxc5 {[%clk 0:00:26]} 29. Bxc5+ {[%clk 0:01:11]}  Bd6 {[%clk 0:00:24]} 30. Bd4 {[%clk 0:01:08]}  Rb8 {[%clk 0:00:20]} 31. Bc6 {[%clk 0:01:07]}  f6 {[%clk 0:00:16]} 32. Kf1 {[%clk 0:01:06]}  Bc7 {[%clk 0:00:13]} 33. Ke2 {[%clk 0:01:05]}  Bb6 {[%clk 0:00:13]} 34. Bc3 {[%clk 0:01:05]}  Kd6 {[%clk 0:00:12]} 35. Bb4+ {[%clk 0:01:05]}  Bc5 {[%clk 0:00:12]} 36. Bd2 {[%clk 0:01:03]}  Rf8 {[%clk 0:00:07]} 37. f3 {[%clk 0:00:59]}  Rb8 {[%clk 0:00:06]} 38. Bf4+ {[%clk 0:00:58]}  Ke6 {[%clk 0:00:04]} 39. Bxb8 {[%clk 0:00:58]}  Bb6 {[%clk 0:00:04]} 40. Kd3 {[%clk 0:00:57]}  g6 {[%clk 0:00:03]} 41. g4 {[%clk 0:00:58]}  f5 {[%clk 0:00:03]} 42. gxf5+ {[%clk 0:00:58]}  Kxf5 {[%clk 0:00:04]} 43. Bd7+ {[%clk 0:00:55]}  Kg5 {[%clk 0:00:02]} 44. Ke4 {[%clk 0:00:55]}  h5 {[%clk 0:00:01]} 45. Bf4+ {[%clk 0:00:54]}  Kh4 {[%clk 0:00:01]} 46. Bg3+ {[%clk 0:00:54]} 1-0


[Site "https://www.chess.com"]

[Event "Titled Tuesday Blitz February 07 Early 2023"]
[White "The_Sherman_Variation"]
[Black "Tobares, Leandro"]
[BlackFideId "106402"]
[WhiteElo "2461"]
[BlackElo "2189"]
[Result "1-0"]
[Round "07"]
[TimeControl "180+2"]
[Date "2023.02.07"]
[WhiteClock "0:00:16"]
[BlackClock "0:00:54"]

1. d4 {[%clk 0:03:00]}  Nf6 {[%clk 0:02:58]} 2. g3 {[%clk 0:03:00]}  e6 {[%clk 0:02:58]} 3. Bg2 {[%clk 0:03:01]}  c5 {[%clk 0:02:56]} 4. c3 {[%clk 0:02:57]}  Nc6 {[%clk 0:02:53]} 5. Nf3 {[%clk 0:02:56]}  d5 {[%clk 0:02:51]} 6. O-O {[%clk 0:02:55]}  Be7 {[%clk 0:02:50]} 7. Re1 {[%clk 0:02:52]}  O-O {[%clk 0:02:49]} 8. Nbd2 {[%clk 0:02:51]}  cxd4 {[%clk 0:02:48]} 9. cxd4 {[%clk 0:02:51]}  b5 {[%clk 0:02:45]} 10. e4 {[%clk 0:02:50]}  dxe4 {[%clk 0:02:45]} 11. Nxe4 {[%clk 0:02:51]}  Bb7 {[%clk 0:02:44]} 12. Ne5 {[%clk 0:02:43]}  Nxe5 {[%clk 0:02:37]} 13. Nxf6+ {[%clk 0:02:27]}  gxf6 {[%clk 0:02:36]} 14. Bxb7 {[%clk 0:02:23]}  Rb8 {[%clk 0:02:35]} 15. Be4 {[%clk 0:02:19]}  Ng6 {[%clk 0:02:32]} 16. Bh6 {[%clk 0:02:17]}  Re8 {[%clk 0:02:31]} 17. Bc6 {[%clk 0:02:10]}  Bf8 {[%clk 0:02:19]} 18. Bxe8 {[%clk 0:02:07]}  Bxh6 {[%clk 0:02:19]} 19. Bc6 {[%clk 0:02:07]}  f5 {[%clk 0:02:15]} 20. Bg2 {[%clk 0:02:01]}  Bg7 {[%clk 0:02:12]} 21. Rb1 {[%clk 0:01:59]}  Qxd4 {[%clk 0:02:09]} 22. Qxd4 {[%clk 0:01:54]}  Bxd4 {[%clk 0:02:09]} 23. Red1 {[%clk 0:01:55]}  e5 {[%clk 0:02:07]} 24. Rdc1 {[%clk 0:01:51]}  f4 {[%clk 0:02:04]} 25. Rc7 {[%clk 0:01:49]}  fxg3 {[%clk 0:02:01]} 26. hxg3 {[%clk 0:01:50]}  h5 {[%clk 0:02:01]} 27. Bd5 {[%clk 0:01:48]}  Rf8 {[%clk 0:02:00]} 28. b3 {[%clk 0:01:42]}  h4 {[%clk 0:01:59]} 29. gxh4 {[%clk 0:01:40]}  Nxh4 {[%clk 0:01:59]} 30. Be4 {[%clk 0:01:36]}  Rd8 {[%clk 0:01:51]} 31. Rbc1 {[%clk 0:01:32]}  f5 {[%clk 0:01:46]} 32. Bc6 {[%clk 0:01:21]}  Ng6 {[%clk 0:01:41]} 33. Bxb5 {[%clk 0:01:13]}  Nf4 {[%clk 0:01:40]} 34. Bc4+ {[%clk 0:01:12]}  Kh8 {[%clk 0:01:38]} 35. Kf1 {[%clk 0:01:05]}  Rd6 {[%clk 0:01:33]} 36. Ke1 {[%clk 0:00:43]}  Rh6 {[%clk 0:01:31]} 37. Kd2 {[%clk 0:00:41]}  Rh2 {[%clk 0:01:29]} 38. Rf1 {[%clk 0:00:35]}  Bxf2 {[%clk 0:01:25]} 39. Kc3 {[%clk 0:00:34]}  a5 {[%clk 0:01:20]} 40. b4 {[%clk 0:00:20]}  axb4+ {[%clk 0:01:11]} 41. Kxb4 {[%clk 0:00:19]}  e4 {[%clk 0:01:09]} 42. Rd1 {[%clk 0:00:18]}  Bh4 {[%clk 0:01:00]} 43. Rdd7 {[%clk 0:00:16]}  Be1+ {[%clk 0:00:54]} 44. Ka4 {[%clk 0:00:16]} 1-0


[Site "https://www.chess.com"]

[Event "Titled Tuesday Blitz February 07 Early 2023"]
[White "Adithya A Chullikkad"]
[Black "Bilan, Danila"]
[WhiteFideId "45078734"]
[BlackFideId "24161918"]
[WhiteElo "2259"]
[BlackElo "2303"]
[Result "0-1"]
[Round "07"]
[TimeControl "180+2"]
[Date "2023.02.07"]
[WhiteClock "0:00:19"]
[BlackClock "0:00:33"]

1. d4 {[%clk 0:03:00]}  d5 {[%clk 0:02:53]} 2. Bf4 {[%clk 0:02:59]}  Nf6 {[%clk 0:02:53]} 3. e3 {[%clk 0:02:59]}  c5 {[%clk 0:02:53]} 4. c3 {[%clk 0:02:59]}  Nc6 {[%clk 0:02:51]} 5. Nd2 {[%clk 0:03:00]}  Qb6 {[%clk 0:02:50]} 6. Qb3 {[%clk 0:03:00]}  c4 {[%clk 0:02:50]} 7. Qc2 {[%clk 0:03:01]}  g6 {[%clk 0:02:50]} 8. Ngf3 {[%clk 0:03:00]}  Bf5 {[%clk 0:02:48]} 9. Qc1 {[%clk 0:03:01]}  Nh5 {[%clk 0:02:48]} 10. Bg3 {[%clk 0:03:00]}  Nxg3 {[%clk 0:02:48]} 11. hxg3 {[%clk 0:03:01]}  Bg7 {[%clk 0:02:47]} 12. Nh4 {[%clk 0:03:02]}  Bd7 {[%clk 0:02:39]} 13. Be2 {[%clk 0:03:01]}  Qd8 {[%clk 0:02:33]} 14. Qc2 {[%clk 0:02:49]}  b5 {[%clk 0:02:31]} 15. O-O {[%clk 0:02:22]}  O-O {[%clk 0:02:19]} 16. e4 {[%clk 0:02:13]}  e6 {[%clk 0:02:11]} 17. e5 {[%clk 0:01:57]}  b4 {[%clk 0:02:00]} 18. Rfe1 {[%clk 0:01:45]}  a5 {[%clk 0:01:56]} 19. Nf1 {[%clk 0:01:43]}  a4 {[%clk 0:01:52]} 20. Ne3 {[%clk 0:01:41]}  a3 {[%clk 0:01:51]} 21. bxa3 {[%clk 0:01:41]}  Rxa3 {[%clk 0:01:46]} 22. cxb4 {[%clk 0:01:41]}  Nxb4 {[%clk 0:01:21]} 23. Qb2 {[%clk 0:01:37]}  Qa5 {[%clk 0:01:18]} 24. Bxc4 {[%clk 0:01:22]}  Rxe3 {[%clk 0:01:07]} 25. Rxe3 {[%clk 0:01:13]}  dxc4 {[%clk 0:01:07]} 26. Qc3 {[%clk 0:01:08]}  Ra8 {[%clk 0:00:43]} 27. a3 {[%clk 0:00:29]}  Nd5 {[%clk 0:00:36]} 28. Qxa5 {[%clk 0:00:28]}  Rxa5 {[%clk 0:00:37]} 29. Ree1 {[%clk 0:00:25]}  Bf8 {[%clk 0:00:35]} 30. Rec1 {[%clk 0:00:24]}  c3 {[%clk 0:00:33]} 31. Nf3 {[%clk 0:00:20]}  Rxa3 {[%clk 0:00:33]} 32. Ra2 {[%clk 0:00:19]}  Rxa2 {[%clk 0:00:33]} 0-1


[Site "https://www.chess.com"]

[Event "Titled Tuesday Blitz February 07 Early 2023"]
[White "Vifleemskaia, Svetlana"]
[Black "matenitian"]
[WhiteFideId "4129490"]
[WhiteElo "1971"]
[BlackElo "2479"]
[Result "0-1"]
[Round "07"]
[TimeControl "180+2"]
[Date "2023.02.07"]
[WhiteClock "0:00:03"]
[BlackClock "0:00:13"]

1. d4 {[%clk 0:02:52]}  Nf6 {[%clk 0:02:59]} 2. c4 {[%clk 0:02:50]}  e6 {[%clk 0:03:00]} 3. Nc3 {[%clk 0:02:47]}  d5 {[%clk 0:02:59]} 4. cxd5 {[%clk 0:02:47]}  exd5 {[%clk 0:02:53]} 5. Bg5 {[%clk 0:02:46]}  c6 {[%clk 0:02:46]} 6. e3 {[%clk 0:02:42]}  Be7 {[%clk 0:02:33]} 7. Bd3 {[%clk 0:02:40]}  Nbd7 {[%clk 0:02:32]} 8. Qc2 {[%clk 0:02:38]}  Nf8 {[%clk 0:02:31]} 9. Nge2 {[%clk 0:02:37]}  Ne6 {[%clk 0:02:32]} 10. Bh4 {[%clk 0:02:34]}  g6 {[%clk 0:02:32]} 11. O-O {[%clk 0:02:31]}  O-O {[%clk 0:02:33]} 12. f3 {[%clk 0:02:30]}  Re8 {[%clk 0:02:32]} 13. Kh1 {[%clk 0:02:30]}  Bd7 {[%clk 0:02:32]} 14. a3 {[%clk 0:02:27]}  b5 {[%clk 0:02:32]} 15. b4 {[%clk 0:02:27]}  Nh5 {[%clk 0:02:23]} 16. Bf2 {[%clk 0:02:11]}  a5 {[%clk 0:02:21]} 17. Rab1 {[%clk 0:01:57]}  axb4 {[%clk 0:02:19]} 18. axb4 {[%clk 0:01:58]}  Bd6 {[%clk 0:02:06]} 19. e4 {[%clk 0:01:51]}  dxe4 {[%clk 0:02:03]} 20. fxe4 {[%clk 0:01:35]}  Nhf4 {[%clk 0:01:55]} 21. Bg1 {[%clk 0:01:22]}  Nxd3 {[%clk 0:01:27]} 22. Qxd3 {[%clk 0:01:21]}  Qg5 {[%clk 0:01:23]} 23. e5 {[%clk 0:01:10]}  Bf8 {[%clk 0:01:19]} 24. Ne4 {[%clk 0:01:10]}  Qd8 {[%clk 0:01:12]} 25. Nf6+ {[%clk 0:01:08]}  Kg7 {[%clk 0:01:12]} 26. Qh3 {[%clk 0:00:58]}  h5 {[%clk 0:00:59]} 27. Nxe8+ {[%clk 0:00:46]}  Qxe8 {[%clk 0:00:57]} 28. Qf3 {[%clk 0:00:45]}  Nc7 {[%clk 0:00:49]} 29. Nf4 {[%clk 0:00:32]}  Be6 {[%clk 0:00:42]} 30. Nxh5+ {[%clk 0:00:29]}  gxh5 {[%clk 0:00:35]} 31. Qxh5 {[%clk 0:00:30]}  Ra3 {[%clk 0:00:19]} 32. Rf6 {[%clk 0:00:25]}  Kg8 {[%clk 0:00:18]} 33. Rbf1 {[%clk 0:00:19]}  Nd5 {[%clk 0:00:17]} 34. Qg5+ {[%clk 0:00:17]}  Bg7 {[%clk 0:00:17]} 35. Rh6 {[%clk 0:00:14]}  Qe7 {[%clk 0:00:16]} 36. Rh5 {[%clk 0:00:09]}  Qxg5 {[%clk 0:00:15]} 37. Rxg5 {[%clk 0:00:10]}  Kf8 {[%clk 0:00:16]} 38. Rb1 {[%clk 0:00:07]}  Bh6 {[%clk 0:00:13]} 39. Rh5 {[%clk 0:00:05]}  Bd2 {[%clk 0:00:13]} 40. Rh8+ {[%clk 0:00:05]}  Ke7 {[%clk 0:00:13]} 41. Rh4 {[%clk 0:00:03]}  Bxb4 {[%clk 0:00:13]} 42. Rh7 {[%clk 0:00:03]}  Bc3 {[%clk 0:00:13]} 0-1


[Site "https://www.chess.com"]

[Event "Titled Tuesday Blitz February 07 Early 2023"]
[White "Schut, Han"]
[Black "Florescu, Codrut-Constantin"]
[WhiteFideId "1005561"]
[BlackFideId "1202200"]
[WhiteElo "2101"]
[BlackElo "2259"]
[Result "0-1"]
[Round "07"]
[TimeControl "180+2"]
[Date "2023.02.07"]
[WhiteClock "0:00:10"]
[BlackClock "0:01:20"]

1. e4 {[%clk 0:02:57]}  c5 {[%clk 0:02:59]} 2. Nf3 {[%clk 0:02:55]}  e6 {[%clk 0:03:00]} 3. c4 {[%clk 0:02:55]}  Nc6 {[%clk 0:02:57]} 4. Nc3 {[%clk 0:02:54]}  b6 {[%clk 0:02:57]} 5. Be2 {[%clk 0:02:54]}  Bb7 {[%clk 0:02:57]} 6. O-O {[%clk 0:02:54]}  Nf6 {[%clk 0:02:57]} 7. Re1 {[%clk 0:02:54]}  Qb8 {[%clk 0:02:57]} 8. Bf1 {[%clk 0:02:50]}  Bd6 {[%clk 0:02:56]} 9. g3 {[%clk 0:02:45]}  h5 {[%clk 0:02:55]} 10. Nb5 {[%clk 0:02:08]}  Be7 {[%clk 0:02:54]} 11. d4 {[%clk 0:01:47]}  a6 {[%clk 0:02:54]} 12. e5 {[%clk 0:01:39]}  Ng4 {[%clk 0:02:47]} 13. Nd6+ {[%clk 0:01:29]}  Bxd6 {[%clk 0:02:47]} 14. exd6 {[%clk 0:01:29]}  Qxd6 {[%clk 0:02:21]} 15. Bf4 {[%clk 0:01:26]}  Nxd4 {[%clk 0:02:17]} 16. Bxd6 {[%clk 0:01:04]}  Nxf3+ {[%clk 0:02:15]} 17. Kg2 {[%clk 0:00:53]}  Nxe1+ {[%clk 0:02:15]} 18. Kg1 {[%clk 0:00:54]}  Nf3+ {[%clk 0:02:14]} 19. Kg2 {[%clk 0:00:54]}  Nfxh2+ {[%clk 0:02:07]} 20. Kg1 {[%clk 0:00:45]}  Nf3+ {[%clk 0:02:07]} 21. Kg2 {[%clk 0:00:45]}  h4 {[%clk 0:01:56]} 22. gxh4 {[%clk 0:00:40]}  Nd4+ {[%clk 0:01:28]} 23. Kg3 {[%clk 0:00:28]}  Nf6 {[%clk 0:01:26]} 24. f4 {[%clk 0:00:18]}  Ne4+ {[%clk 0:01:24]} 25. Kh3 {[%clk 0:00:14]}  Nxd6 {[%clk 0:01:25]} 26. Bg2 {[%clk 0:00:13]}  Bxg2+ {[%clk 0:01:23]} 27. Kxg2 {[%clk 0:00:14]}  Rxh4 {[%clk 0:01:23]} 28. Qd2 {[%clk 0:00:11]}  Rh2+ {[%clk 0:01:20]} 29. Kxh2 {[%clk 0:00:10]}  Nf3+ {[%clk 0:01:20]} 0-1


[Site "https://www.chess.com"]

[Event "Titled Tuesday Blitz February 07 Early 2023"]
[White "Sai Han Thiha"]
[Black "Wilson, Elvin"]
[WhiteFideId "13012290"]
[BlackFideId "2014874"]
[WhiteElo "2070"]
[BlackElo "2183"]
[Result "1-0"]
[Round "07"]
[TimeControl "180+2"]
[Date "2023.02.07"]
[WhiteClock "0:02:12"]
[BlackClock "0:01:02"]

1. d4 {[%clk 0:03:00]}  Nf6 {[%clk 0:02:59]} 2. c4 {[%clk 0:03:01]}  e6 {[%clk 0:02:58]} 3. Nf3 {[%clk 0:03:01]}  d5 {[%clk 0:02:57]} 4. Nc3 {[%clk 0:03:01]}  Bb4 {[%clk 0:02:56]} 5. Qa4+ {[%clk 0:03:01]}  Nc6 {[%clk 0:02:56]} 6. cxd5 {[%clk 0:03:02]}  exd5 {[%clk 0:02:54]} 7. Bg5 {[%clk 0:03:02]}  h6 {[%clk 0:02:45]} 8. Bxf6 {[%clk 0:03:02]}  Qxf6 {[%clk 0:02:44]} 9. e3 {[%clk 0:03:03]}  O-O {[%clk 0:02:33]} 10. Be2 {[%clk 0:03:03]}  Rd8 {[%clk 0:02:20]} 11. Qb3 {[%clk 0:03:02]}  Be6 {[%clk 0:01:42]} 12. a3 {[%clk 0:03:02]}  Bf8 {[%clk 0:01:31]} 13. Qxb7 {[%clk 0:03:01]}  Na5 {[%clk 0:01:16]} 14. Qa6 {[%clk 0:02:22]}  Nb3 {[%clk 0:01:12]} 15. Rd1 {[%clk 0:02:15]}  Rd6 {[%clk 0:01:02]} 16. Qb7 {[%clk 0:02:12]} 1-0


[Site "https://www.chess.com"]

[Event "Titled Tuesday Blitz February 07 Early 2023"]
[White "Theytookourjobs"]
[Black "Ansh M Shah"]
[BlackFideId "25033379"]
[WhiteElo "2291"]
[BlackElo "2171"]
[Result "0-1"]
[Round "07"]
[TimeControl "180+2"]
[Date "2023.02.07"]
[WhiteClock "0:00:03"]
[BlackClock "0:01:27"]

1. d4 {[%clk 0:02:56]}  Nf6 {[%clk 0:02:59]} 2. Bf4 {[%clk 0:02:56]}  e6 {[%clk 0:03:00]} 3. e3 {[%clk 0:02:55]}  d5 {[%clk 0:03:01]} 4. Nf3 {[%clk 0:02:56]}  Be7 {[%clk 0:03:02]} 5. Bd3 {[%clk 0:02:55]}  O-O {[%clk 0:03:02]} 6. Nbd2 {[%clk 0:02:55]}  b6 {[%clk 0:03:03]} 7. Ne5 {[%clk 0:02:55]}  Bb7 {[%clk 0:03:04]} 8. Qf3 {[%clk 0:02:55]}  Nbd7 {[%clk 0:03:04]} 9. h4 {[%clk 0:02:51]}  h5 {[%clk 0:02:55]} 10. O-O-O {[%clk 0:01:43]}  c5 {[%clk 0:02:49]} 11. c3 {[%clk 0:01:41]}  Rc8 {[%clk 0:02:44]} 12. Rdg1 {[%clk 0:01:31]}  Nxe5 {[%clk 0:02:43]} 13. Bxe5 {[%clk 0:01:28]}  Ng4 {[%clk 0:02:43]} 14. Qe2 {[%clk 0:01:02]}  Bd6 {[%clk 0:02:29]} 15. f3 {[%clk 0:00:51]}  Bxe5 {[%clk 0:02:19]} 16. fxg4 {[%clk 0:00:48]}  cxd4 {[%clk 0:02:17]} 17. exd4 {[%clk 0:00:41]}  Bxd4 {[%clk 0:02:17]} 18. gxh5 {[%clk 0:00:38]}  Bxg1 {[%clk 0:02:15]} 19. Rxg1 {[%clk 0:00:38]}  Qxh4 {[%clk 0:02:16]} 20. Bc2 {[%clk 0:00:22]}  d4 {[%clk 0:01:43]} 21. Qd3 {[%clk 0:00:16]}  f5 {[%clk 0:01:43]} 22. g3 {[%clk 0:00:09]}  Qf6 {[%clk 0:01:39]} 23. c4 {[%clk 0:00:04]}  e5 {[%clk 0:01:34]} 24. g4 {[%clk 0:00:03]}  e4 {[%clk 0:01:34]} 25. Qb3 {[%clk 0:00:03]}  d3 {[%clk 0:01:31]} 26. Bd1 {[%clk 0:00:04]}  f4 {[%clk 0:01:27]} 27. g5 {[%clk 0:00:03]}  Qd4 {[%clk 0:01:27]} 0-1


[Site "https://www.chess.com"]

[Event "Titled Tuesday Blitz February 07 Early 2023"]
[White "Vaglio Munoz, Jaime"]
[Black "Rottenwohrer Suarez, Juan"]
[WhiteFideId "6500145"]
[BlackFideId "32068182"]
[WhiteElo "2174"]
[BlackElo "2265"]
[Result "0-1"]
[Round "07"]
[TimeControl "180+2"]
[Date "2023.02.07"]
[WhiteClock "0:00:17"]
[BlackClock "0:00:04"]

1. d4 {[%clk 0:03:00]}  Nf6 {[%clk 0:02:50]} 2. g3 {[%clk 0:03:00]}  d5 {[%clk 0:02:47]} 3. Bg2 {[%clk 0:03:00]}  c5 {[%clk 0:02:44]} 4. c3 {[%clk 0:02:58]}  Nc6 {[%clk 0:02:42]} 5. dxc5 {[%clk 0:02:57]}  a5 {[%clk 0:02:38]} 6. Nf3 {[%clk 0:02:45]}  e6 {[%clk 0:02:28]} 7. O-O {[%clk 0:02:42]}  Bxc5 {[%clk 0:02:28]} 8. Nd4 {[%clk 0:02:41]}  O-O {[%clk 0:02:26]} 9. Bg5 {[%clk 0:02:39]}  h6 {[%clk 0:02:25]} 10. Bxf6 {[%clk 0:02:38]}  Qxf6 {[%clk 0:02:24]} 11. e3 {[%clk 0:02:38]}  Bb6 {[%clk 0:02:15]} 12. Nd2 {[%clk 0:02:38]}  e5 {[%clk 0:02:09]} 13. Nb5 {[%clk 0:02:33]}  Rd8 {[%clk 0:02:00]} 14. Kh1 {[%clk 0:01:50]}  Bf5 {[%clk 0:01:56]} 15. Qe2 {[%clk 0:01:37]}  a4 {[%clk 0:01:44]} 16. e4 {[%clk 0:01:36]}  Be6 {[%clk 0:01:27]} 17. exd5 {[%clk 0:01:33]}  Bxd5 {[%clk 0:01:26]} 18. Ne4 {[%clk 0:01:33]}  Qe6 {[%clk 0:01:18]} 19. Na3 {[%clk 0:01:25]}  Bxa2 {[%clk 0:01:11]} 20. c4 {[%clk 0:01:03]}  Bb3 {[%clk 0:01:08]} 21. c5 {[%clk 0:01:02]}  Nd4 {[%clk 0:01:06]} 22. Qh5 {[%clk 0:00:59]}  Ba5 {[%clk 0:01:01]} 23. f4 {[%clk 0:00:49]}  exf4 {[%clk 0:00:53]} 24. Rxf4 {[%clk 0:00:46]}  Rd5 {[%clk 0:00:37]} 25. Nf6+ {[%clk 0:00:31]}  Qxf6 {[%clk 0:00:28]} 26. Bxd5 {[%clk 0:00:21]}  Qg5 {[%clk 0:00:04]} 27. Qxf7+ {[%clk 0:00:15]}  Kh8 {[%clk 0:00:04]} 28. Bxb3 {[%clk 0:00:15]}  Nxb3 {[%clk 0:00:04]} 29. Raf1 {[%clk 0:00:14]}  Qxc5 {[%clk 0:00:04]} 30. Qg6 {[%clk 0:00:13]}  Qc6+ {[%clk 0:00:03]} 31. Kg1 {[%clk 0:00:12]}  Qxg6 {[%clk 0:00:02]} 32. Nc4 {[%clk 0:00:10]}  Kh7 {[%clk 0:00:02]} 33. Ne5 {[%clk 0:00:09]}  Bb6+ {[%clk 0:00:03]} 34. Kg2 {[%clk 0:00:09]}  Qd6 {[%clk 0:00:03]} 35. Nf3 {[%clk 0:00:09]}  Qd5 {[%clk 0:00:03]} 36. Kh3 {[%clk 0:00:09]}  Nd4 {[%clk 0:00:03]} 37. Nh4 {[%clk 0:00:08]}  Qe6+ {[%clk 0:00:03]} 38. g4 {[%clk 0:00:07]}  Rc8 {[%clk 0:00:02]} 39. Ng2 {[%clk 0:00:03]}  Rc2 {[%clk 0:00:02]} 40. R1f3 {[%clk 0:00:03]}  Nxf3 {[%clk 0:00:02]} 41. Rxf3 {[%clk 0:00:03]}  Rxg2 {[%clk 0:00:03]} 42. Kxg2 {[%clk 0:00:02]}  Qxg4+ {[%clk 0:00:03]} 43. Rg3 {[%clk 0:00:02]}  Qxg3+ {[%clk 0:00:03]} 44. hxg3 {[%clk 0:00:02]}  Bd4 {[%clk 0:00:04]} 45. Kf3 {[%clk 0:00:03]}  Bxb2 {[%clk 0:00:04]} 46. Ke4 {[%clk 0:00:04]}  a3 {[%clk 0:00:05]} 47. Kd3 {[%clk 0:00:05]}  Kg6 {[%clk 0:00:05]} 48. Kc2 {[%clk 0:00:06]}  Kg5 {[%clk 0:00:06]} 49. Kb1 {[%clk 0:00:06]}  Kg4 {[%clk 0:00:07]} 50. Ka2 {[%clk 0:00:07]}  Kxg3 {[%clk 0:00:08]} 51. Kb3 {[%clk 0:00:08]}  g5 {[%clk 0:00:09]} 52. Kc2 {[%clk 0:00:08]}  h5 {[%clk 0:00:09]} 53. Kd1 {[%clk 0:00:09]}  h4 {[%clk 0:00:10]} 54. Ke2 {[%clk 0:00:10]}  h3 {[%clk 0:00:11]} 55. Ke3 {[%clk 0:00:11]}  g4 {[%clk 0:00:12]} 56. Ke4 {[%clk 0:00:12]}  b5 {[%clk 0:00:12]} 57. Kf5 {[%clk 0:00:13]}  b4 {[%clk 0:00:13]} 58. Kg5 {[%clk 0:00:14]}  b3 {[%clk 0:00:13]} 59. Kh5 {[%clk 0:00:15]}  a2 {[%clk 0:00:14]} 60. Kg5 {[%clk 0:00:15]}  Bc1+ {[%clk 0:00:14]} 61. Kf5 {[%clk 0:00:16]}  b2 {[%clk 0:00:15]} 62. Ke4 {[%clk 0:00:17]}  a1=Q {[%clk 0:00:14]} 63. Kd3 {[%clk 0:00:18]}  b1=Q+ {[%clk 0:00:13]} 64. Ke2 {[%clk 0:00:16]}  Qc2+ {[%clk 0:00:09]} 65. Kf1 {[%clk 0:00:17]}  h2 {[%clk 0:00:07]} 66. Ke1 {[%clk 0:00:17]}  Kh3 {[%clk 0:00:05]} 67. Kf1 {[%clk 0:00:17]}  g3 {[%clk 0:00:06]} 68. Ke1 {[%clk 0:00:17]}  h1=Q# {[%clk 0:00:04]} 0-1


[Site "https://www.chess.com"]